{"text_format":"3","workbook":"xlsx","n_sheets":3,"sheets":["Mėnesio biudžeto ataskaita","Mėnesinės išlaidos","Papildomi duomenys"],"not_rendered":{"charts":1,"defined_names":4,"pivot_tables":2},"read":"whole","date_system":"1900"}

{"sheet":"Mėnesio biudžeto ataskaita","index":0,"n_rows":34,"n_cols":13,"rows_kept":34,"merged":[[7,1,10,1],[7,5,10,5],[7,6,10,6],[12,1,16,1],[12,5,16,5],[12,6,16,6]]}
[null,"Biudžeto apžvalga",{"$nulls":7},"Biudžeto suvestinė"]
[null,"Balansas"]
[null,"Numatytas balansas","(Numatytosios išlaidos, atėmus išlaidas)",{"$nulls":3},{"$f":"D17-SUM(IšsamiBiudžetoInformacija[Numatytosios išlaidos])","v":{"v":1585,"d":"1,585 Lt"}}]
[null,"Faktinis balansas ","(Išleista atėmus išlaidas)",{"$nulls":3},{"$f":"D11-SUM(IšsamiBiudžetoInformacija[Faktinės išlaidos])","v":{"v":1740,"d":"1,740 Lt"}}]
[null,"Skirtumas","(Išleista atėmus numatytas išlaidas)",{"$nulls":3},{"$f":"G4-G3","v":{"v":155,"d":"155 Lt"}}]
[]
[null,"Pajamos",{"$nulls":3},"Išlaidos",{"$nulls":3},"Dešiniuoju pelės mygtuku spustelėkite „PivotTable“ apačioje, o tada spustelėkite Atnaujinti, kad atnaujintumėte"]
[null,"IŠLEISTA","1 pajamos",{"v":5800,"d":"5,800 Lt"},null,"IŠLEISTA",{"$f":"SUM(IšsamiBiudžetoInformacija[Faktinės išlaidos])","v":{"v":7860,"d":"7,860 Lt"}}]
[null,null,"2 pajamos",{"v":2300,"d":"2,300 Lt"},{"$nulls":5},"Kategorija","Numatytosios išlaidos ","Faktinės išlaidos ","Skirtumas "]
[null,null,"Papildomos pajamos",{"v":1500,"d":"1,500 Lt"},{"$nulls":5},"Asmeninė priežiūra",{"v":150,"d":"150 Lt"},{"v":140,"d":"140 Lt"},{"v":10,"d":"10 Lt"}]
[null,null,"Bendroji pajamų suma",{"$f":"SUM(D8:D10)","v":{"v":9600,"d":"9,600 Lt"}}]
[{"$nulls":9},"Būstas",{"v":2830,"d":"2,830 Lt"},{"v":2702,"d":"2,702 Lt"},{"v":128,"d":"128 Lt"}]
[null,"NUMATYTOSIOS IŠLAIDOS",{"$nulls":3},"NUMATYTOSIOS IŠLAIDOS",{"$f":"SUM(IšsamiBiudžetoInformacija[Numatytosios išlaidos])","v":{"v":7915,"d":"7,915 Lt"}}]
[null,null,"1 pajamos",{"v":6000,"d":"6,000 Lt"},{"$nulls":5},"Dovanos ir labdara",{"v":100,"d":"100 Lt"},{"v":125,"d":"125 Lt"},{"v":-25,"d":"(25 Lt)"}]
[null,null,"2 pajamos",{"v":1000,"d":"1,000 Lt"}]
[null,null,"Papildomos pajamos",{"v":2500,"d":"2,500 Lt"},{"$nulls":5},"Draudimas",{"v":900,"d":"900 Lt"},{"v":900,"d":"900 Lt"},{"v":0,"d":"0 Lt"}]
[null,null,"Bendroji pajamų suma",{"$f":"SUM(D14:D16)","v":{"v":9500,"d":"9,500 Lt"}}]
[{"$nulls":9},"Maistas",{"v":1100,"d":"1,100 Lt"},{"v":1320,"d":"1,320 Lt"},{"v":-220,"d":"(220 Lt)"}]
[]
[{"$nulls":9},"Mokesčiai",{"v":300,"d":"300 Lt"},{"v":300,"d":"300 Lt"},{"v":0,"d":"0 Lt"}]
[]
[{"$nulls":9},"Naminiai gyvūnai",{"v":170,"d":"170 Lt"},{"v":100,"d":"100 Lt"},{"v":70,"d":"70 Lt"}]
[]
[{"$nulls":9},"Paskolos",{"v":200,"d":"200 Lt"},{"v":200,"d":"200 Lt"},{"v":0,"d":"0 Lt"}]
[]
[{"$nulls":9},"Pramogos",{"v":400,"d":"400 Lt"},{"v":358,"d":"358 Lt"},{"v":42,"d":"42 Lt"}]
[]
[{"$nulls":9},"Santaupos arba investicijos",{"v":200,"d":"200 Lt"},{"v":200,"d":"200 Lt"},{"v":0,"d":"0 Lt"}]
[]
[{"$nulls":9},"Transportas",{"v":1425,"d":"1,425 Lt"},{"v":1375,"d":"1,375 Lt"},{"v":50,"d":"50 Lt"}]
[]
[{"$nulls":9},"Vaikai",{"v":140,"d":"140 Lt"},{"v":140,"d":"140 Lt"},{"v":0,"d":"0 Lt"}]
[]
[{"$nulls":9},"Bendroji suma",{"v":7915,"d":"7,915 Lt"},{"v":7860,"d":"7,860 Lt"},{"v":55,"d":"55 Lt"}]

{"sheet":"Mėnesinės išlaidos","index":1,"n_rows":62,"n_cols":7,"rows_kept":62}
[null,"Mėnesinės išlaidos"]
[null,"Aprašas","Kategorija","Numatytosios išlaidos","Faktinės išlaidos","Skirtumas","Faktinių išlaidų suvestinė"]
[null,"Užklasinė veikla","Vaikai",{"v":40,"d":"40 Lt"},{"v":40,"d":"40 Lt"},{"$f":"IšsamiBiudžetoInformacija[[#This Row],[Numatytosios išlaidos]]-IšsamiBiudžetoInformacija[[#This Row],[Faktinės išlaidos]]","v":{"v":0,"d":"0 Lt"}},{"$f":"IšsamiBiudžetoInformacija[[#This Row],[Faktinės išlaidos]]","v":{"v":40,"d":"$40"}}]
[null,"Medicinos paslaugos","Vaikai",null,null,{"$f":"IšsamiBiudžetoInformacija[[#This Row],[Numatytosios išlaidos]]-IšsamiBiudžetoInformacija[[#This Row],[Faktinės išlaidos]]","v":{"v":0,"d":"0 Lt"}},{"$f":"IšsamiBiudžetoInformacija[[#This Row],[Faktinės išlaidos]]","v":{"v":0,"d":"$0"}}]
[null,"Priemonės mokyklai","Vaikai",null,null,{"$f":"IšsamiBiudžetoInformacija[[#This Row],[Numatytosios išlaidos]]-IšsamiBiudžetoInformacija[[#This Row],[Faktinės išlaidos]]","v":{"v":0,"d":"0 Lt"}},{"$f":"IšsamiBiudžetoInformacija[[#This Row],[Faktinės išlaidos]]","v":{"v":0,"d":"$0"}}]
[null,"Mokestis už mokslą","Vaikai",{"v":100,"d":"100 Lt"},{"v":100,"d":"100 Lt"},{"$f":"IšsamiBiudžetoInformacija[[#This Row],[Numatytosios išlaidos]]-IšsamiBiudžetoInformacija[[#This Row],[Faktinės išlaidos]]","v":{"v":0,"d":"0 Lt"}},{"$f":"IšsamiBiudžetoInformacija[[#This Row],[Faktinės išlaidos]]","v":{"v":100,"d":"$100"}}]
[null,"Koncertai","Pramogos",{"v":50,"d":"50 Lt"},{"v":40,"d":"40 Lt"},{"$f":"IšsamiBiudžetoInformacija[[#This Row],[Numatytosios išlaidos]]-IšsamiBiudžetoInformacija[[#This Row],[Faktinės išlaidos]]","v":{"v":10,"d":"10 Lt"}},{"$f":"IšsamiBiudžetoInformacija[[#This Row],[Faktinės išlaidos]]","v":{"v":40,"d":"$40"}}]
[null,"Teatras","Pramogos",{"v":200,"d":"200 Lt"},{"v":150,"d":"150 Lt"},{"$f":"IšsamiBiudžetoInformacija[[#This Row],[Numatytosios išlaidos]]-IšsamiBiudžetoInformacija[[#This Row],[Faktinės išlaidos]]","v":{"v":50,"d":"50 Lt"}},{"$f":"IšsamiBiudžetoInformacija[[#This Row],[Faktinės išlaidos]]","v":{"v":150,"d":"$150"}}]
[null,"Filmai","Pramogos",{"v":50,"d":"50 Lt"},{"v":28,"d":"28 Lt"},{"$f":"IšsamiBiudžetoInformacija[[#This Row],[Numatytosios išlaidos]]-IšsamiBiudžetoInformacija[[#This Row],[Faktinės išlaidos]]","v":{"v":22,"d":"22 Lt"}},{"$f":"IšsamiBiudžetoInformacija[[#This Row],[Faktinės išlaidos]]","v":{"v":28,"d":"$28"}}]
[null,"Muzika (kompaktiniai diskai, atsisiuntimai, etc.)","Pramogos",{"v":50,"d":"50 Lt"},{"v":30,"d":"30 Lt"},{"$f":"IšsamiBiudžetoInformacija[[#This Row],[Numatytosios išlaidos]]-IšsamiBiudžetoInformacija[[#This Row],[Faktinės išlaidos]]","v":{"v":20,"d":"20 Lt"}},{"$f":"IšsamiBiudžetoInformacija[[#This Row],[Faktinės išlaidos]]","v":{"v":30,"d":"$30"}}]
[null,"Sporto renginiai","Pramogos",{"v":0,"d":"0 Lt"},{"v":40,"d":"40 Lt"},{"$f":"IšsamiBiudžetoInformacija[[#This Row],[Numatytosios išlaidos]]-IšsamiBiudžetoInformacija[[#This Row],[Faktinės išlaidos]]","v":{"v":-40,"d":"(40 Lt)"}},{"$f":"IšsamiBiudžetoInformacija[[#This Row],[Faktinės išlaidos]]","v":{"v":40,"d":"$40"}}]
[null,"Vaizdo įrašai / DVD (pirkimas)","Pramogos",{"v":20,"d":"20 Lt"},{"v":50,"d":"50 Lt"},{"$f":"IšsamiBiudžetoInformacija[[#This Row],[Numatytosios išlaidos]]-IšsamiBiudžetoInformacija[[#This Row],[Faktinės išlaidos]]","v":{"v":-30,"d":"(30 Lt)"}},{"$f":"IšsamiBiudžetoInformacija[[#This Row],[Faktinės išlaidos]]","v":{"v":50,"d":"$50"}}]
[null,"Vaizdo įrašai / DVD (nuomos mokestis)","Pramogos",{"v":30,"d":"30 Lt"},{"v":20,"d":"20 Lt"},{"$f":"IšsamiBiudžetoInformacija[[#This Row],[Numatytosios išlaidos]]-IšsamiBiudžetoInformacija[[#This Row],[Faktinės išlaidos]]","v":{"v":10,"d":"10 Lt"}},{"$f":"IšsamiBiudžetoInformacija[[#This Row],[Faktinės išlaidos]]","v":{"v":20,"d":"$20"}}]
[null,"Pietūs ne namie","Maistas",{"v":1000,"d":"1,000 Lt"},{"v":1200,"d":"1,200 Lt"},{"$f":"IšsamiBiudžetoInformacija[[#This Row],[Numatytosios išlaidos]]-IšsamiBiudžetoInformacija[[#This Row],[Faktinės išlaidos]]","v":{"v":-200,"d":"(200 Lt)"}},{"$f":"IšsamiBiudžetoInformacija[[#This Row],[Faktinės išlaidos]]","v":{"v":1200,"d":"$1,200"}}]
[null,"Bakalėjos ir gastronomijos prekės","Maistas",{"v":100,"d":"100 Lt"},{"v":120,"d":"120 Lt"},{"$f":"IšsamiBiudžetoInformacija[[#This Row],[Numatytosios išlaidos]]-IšsamiBiudžetoInformacija[[#This Row],[Faktinės išlaidos]]","v":{"v":-20,"d":"(20 Lt)"}},{"$f":"IšsamiBiudžetoInformacija[[#This Row],[Faktinės išlaidos]]","v":{"v":120,"d":"$120"}}]
[null,"1 labdara","Dovanos ir labdara",{"v":75,"d":"75 Lt"},{"v":100,"d":"100 Lt"},{"$f":"IšsamiBiudžetoInformacija[[#This Row],[Numatytosios išlaidos]]-IšsamiBiudžetoInformacija[[#This Row],[Faktinės išlaidos]]","v":{"v":-25,"d":"(25 Lt)"}},{"$f":"IšsamiBiudžetoInformacija[[#This Row],[Faktinės išlaidos]]","v":{"v":100,"d":"$100"}}]
[null,"2 labdara","Dovanos ir labdara",{"v":25,"d":"25 Lt"},{"v":25,"d":"25 Lt"},{"$f":"IšsamiBiudžetoInformacija[[#This Row],[Numatytosios išlaidos]]-IšsamiBiudžetoInformacija[[#This Row],[Faktinės išlaidos]]","v":{"v":0,"d":"0 Lt"}},{"$f":"IšsamiBiudžetoInformacija[[#This Row],[Faktinės išlaidos]]","v":{"v":25,"d":"$25"}}]
[null,"1 dovana","Dovanos ir labdara",null,null,{"$f":"IšsamiBiudžetoInformacija[[#This Row],[Numatytosios išlaidos]]-IšsamiBiudžetoInformacija[[#This Row],[Faktinės išlaidos]]","v":{"v":0,"d":"0 Lt"}},{"$f":"IšsamiBiudžetoInformacija[[#This Row],[Faktinės išlaidos]]","v":{"v":0,"d":"$0"}}]
[null,"2 dovana","Dovanos ir labdara",null,null,{"$f":"IšsamiBiudžetoInformacija[[#This Row],[Numatytosios išlaidos]]-IšsamiBiudžetoInformacija[[#This Row],[Faktinės išlaidos]]","v":{"v":0,"d":"0 Lt"}},{"$f":"IšsamiBiudžetoInformacija[[#This Row],[Faktinės išlaidos]]","v":{"v":0,"d":"$0"}}]
[null,"Kabelinis / satelitinis ryšys","Būstas",{"v":100,"d":"100 Lt"},{"v":100,"d":"100 Lt"},{"$f":"IšsamiBiudžetoInformacija[[#This Row],[Numatytosios išlaidos]]-IšsamiBiudžetoInformacija[[#This Row],[Faktinės išlaidos]]","v":{"v":0,"d":"0 Lt"}},{"$f":"IšsamiBiudžetoInformacija[[#This Row],[Faktinės išlaidos]]","v":{"v":100,"d":"$100"}}]
[null,"Elektros energija","Būstas",{"v":45,"d":"45 Lt"},{"v":50,"d":"50 Lt"},{"$f":"IšsamiBiudžetoInformacija[[#This Row],[Numatytosios išlaidos]]-IšsamiBiudžetoInformacija[[#This Row],[Faktinės išlaidos]]","v":{"v":-5,"d":"(5 Lt)"}},{"$f":"IšsamiBiudžetoInformacija[[#This Row],[Faktinės išlaidos]]","v":{"v":50,"d":"$50"}}]
[null,"Dujos","Būstas",{"v":300,"d":"300 Lt"},{"v":400,"d":"400 Lt"},{"$f":"IšsamiBiudžetoInformacija[[#This Row],[Numatytosios išlaidos]]-IšsamiBiudžetoInformacija[[#This Row],[Faktinės išlaidos]]","v":{"v":-100,"d":"(100 Lt)"}},{"$f":"IšsamiBiudžetoInformacija[[#This Row],[Faktinės išlaidos]]","v":{"v":400,"d":"$400"}}]
[null,"Namų valymo paslaugos","Būstas",{"v":200,"d":"200 Lt"},null,{"$f":"IšsamiBiudžetoInformacija[[#This Row],[Numatytosios išlaidos]]-IšsamiBiudžetoInformacija[[#This Row],[Faktinės išlaidos]]","v":{"v":200,"d":"200 Lt"}},{"$f":"IšsamiBiudžetoInformacija[[#This Row],[Faktinės išlaidos]]","v":{"v":0,"d":"$0"}}]
[null,"Techninė priežiūra","Būstas",{"v":200,"d":"200 Lt"},{"v":150,"d":"150 Lt"},{"$f":"IšsamiBiudžetoInformacija[[#This Row],[Numatytosios išlaidos]]-IšsamiBiudžetoInformacija[[#This Row],[Faktinės išlaidos]]","v":{"v":50,"d":"50 Lt"}},{"$f":"IšsamiBiudžetoInformacija[[#This Row],[Faktinės išlaidos]]","v":{"v":150,"d":"$150"}}]
[null,"Paskolos arba nuoma","Būstas",{"v":1700,"d":"1,700 Lt"},{"v":1700,"d":"1,700 Lt"},{"$f":"IšsamiBiudžetoInformacija[[#This Row],[Numatytosios išlaidos]]-IšsamiBiudžetoInformacija[[#This Row],[Faktinės išlaidos]]","v":{"v":0,"d":"0 Lt"}},{"$f":"IšsamiBiudžetoInformacija[[#This Row],[Faktinės išlaidos]]","v":{"v":1700,"d":"$1,700"}}]
[null,"Gamtinės dujos / degalai","Būstas",null,null,{"$f":"IšsamiBiudžetoInformacija[[#This Row],[Numatytosios išlaidos]]-IšsamiBiudžetoInformacija[[#This Row],[Faktinės išlaidos]]","v":{"v":0,"d":"0 Lt"}},{"$f":"IšsamiBiudžetoInformacija[[#This Row],[Faktinės išlaidos]]","v":{"v":0,"d":"$0"}}]
[null,"Tinklo / interneto paslaugos","Būstas",{"v":100,"d":"100 Lt"},{"v":100,"d":"100 Lt"},{"$f":"IšsamiBiudžetoInformacija[[#This Row],[Numatytosios išlaidos]]-IšsamiBiudžetoInformacija[[#This Row],[Faktinės išlaidos]]","v":{"v":0,"d":"0 Lt"}},{"$f":"IšsamiBiudžetoInformacija[[#This Row],[Faktinės išlaidos]]","v":{"v":100,"d":"$100"}}]
[null,"Telefonas (mobilusis)","Būstas",{"v":60,"d":"60 Lt"},{"v":60,"d":"60 Lt"},{"$f":"IšsamiBiudžetoInformacija[[#This Row],[Numatytosios išlaidos]]-IšsamiBiudžetoInformacija[[#This Row],[Faktinės išlaidos]]","v":{"v":0,"d":"0 Lt"}},{"$f":"IšsamiBiudžetoInformacija[[#This Row],[Faktinės išlaidos]]","v":{"v":60,"d":"$60"}}]
[null,"Telefonas (namų)","Būstas",{"v":35,"d":"35 Lt"},{"v":39,"d":"39 Lt"},{"$f":"IšsamiBiudžetoInformacija[[#This Row],[Numatytosios išlaidos]]-IšsamiBiudžetoInformacija[[#This Row],[Faktinės išlaidos]]","v":{"v":-4,"d":"(4 Lt)"}},{"$f":"IšsamiBiudžetoInformacija[[#This Row],[Faktinės išlaidos]]","v":{"v":39,"d":"$39"}}]
[null,"Ištekliai","Būstas",{"v":40,"d":"40 Lt"},{"v":55,"d":"55 Lt"},{"$f":"IšsamiBiudžetoInformacija[[#This Row],[Numatytosios išlaidos]]-IšsamiBiudžetoInformacija[[#This Row],[Faktinės išlaidos]]","v":{"v":-15,"d":"(15 Lt)"}},{"$f":"IšsamiBiudžetoInformacija[[#This Row],[Faktinės išlaidos]]","v":{"v":55,"d":"$55"}}]
[null,"Šiukšlių išvežimas ir perdirbimas","Būstas",{"v":25,"d":"25 Lt"},{"v":22,"d":"22 Lt"},{"$f":"IšsamiBiudžetoInformacija[[#This Row],[Numatytosios išlaidos]]-IšsamiBiudžetoInformacija[[#This Row],[Faktinės išlaidos]]","v":{"v":3,"d":"3 Lt"}},{"$f":"IšsamiBiudžetoInformacija[[#This Row],[Faktinės išlaidos]]","v":{"v":22,"d":"$22"}}]
[null,"Vanduo ir kanalizacija","Būstas",{"v":25,"d":"25 Lt"},{"v":26,"d":"26 Lt"},{"$f":"IšsamiBiudžetoInformacija[[#This Row],[Numatytosios išlaidos]]-IšsamiBiudžetoInformacija[[#This Row],[Faktinės išlaidos]]","v":{"v":-1,"d":"(1 Lt)"}},{"$f":"IšsamiBiudžetoInformacija[[#This Row],[Faktinės išlaidos]]","v":{"v":26,"d":"$26"}}]
[null,"Sveikatos","Draudimas",{"v":400,"d":"400 Lt"},{"v":400,"d":"400 Lt"},{"$f":"IšsamiBiudžetoInformacija[[#This Row],[Numatytosios išlaidos]]-IšsamiBiudžetoInformacija[[#This Row],[Faktinės išlaidos]]","v":{"v":0,"d":"0 Lt"}},{"$f":"IšsamiBiudžetoInformacija[[#This Row],[Faktinės išlaidos]]","v":{"v":400,"d":"$400"}}]
[null,"Namų","Draudimas",{"v":400,"d":"400 Lt"},{"v":400,"d":"400 Lt"},{"$f":"IšsamiBiudžetoInformacija[[#This Row],[Numatytosios išlaidos]]-IšsamiBiudžetoInformacija[[#This Row],[Faktinės išlaidos]]","v":{"v":0,"d":"0 Lt"}},{"$f":"IšsamiBiudžetoInformacija[[#This Row],[Faktinės išlaidos]]","v":{"v":400,"d":"$400"}}]
[null,"Gyvybės","Draudimas",{"v":100,"d":"100 Lt"},{"v":100,"d":"100 Lt"},{"$f":"IšsamiBiudžetoInformacija[[#This Row],[Numatytosios išlaidos]]-IšsamiBiudžetoInformacija[[#This Row],[Faktinės išlaidos]]","v":{"v":0,"d":"0 Lt"}},{"$f":"IšsamiBiudžetoInformacija[[#This Row],[Faktinės išlaidos]]","v":{"v":100,"d":"$100"}}]
[null,"1 kredito kortelė","Paskolos",{"v":200,"d":"200 Lt"},{"v":200,"d":"200 Lt"},{"$f":"IšsamiBiudžetoInformacija[[#This Row],[Numatytosios išlaidos]]-IšsamiBiudžetoInformacija[[#This Row],[Faktinės išlaidos]]","v":{"v":0,"d":"0 Lt"}},{"$f":"IšsamiBiudžetoInformacija[[#This Row],[Faktinės išlaidos]]","v":{"v":200,"d":"$200"}}]
[null,"2 kredito kortelė","Paskolos",null,null,{"$f":"IšsamiBiudžetoInformacija[[#This Row],[Numatytosios išlaidos]]-IšsamiBiudžetoInformacija[[#This Row],[Faktinės išlaidos]]","v":{"v":0,"d":"0 Lt"}},{"$f":"IšsamiBiudžetoInformacija[[#This Row],[Faktinės išlaidos]]","v":{"v":0,"d":"$0"}}]
[null,"3 kredito kortelė","Paskolos",null,null,{"$f":"IšsamiBiudžetoInformacija[[#This Row],[Numatytosios išlaidos]]-IšsamiBiudžetoInformacija[[#This Row],[Faktinės išlaidos]]","v":{"v":0,"d":"0 Lt"}},{"$f":"IšsamiBiudžetoInformacija[[#This Row],[Faktinės išlaidos]]","v":{"v":0,"d":"$0"}}]
[null,"Asmeninė","Paskolos",null,null,{"$f":"IšsamiBiudžetoInformacija[[#This Row],[Numatytosios išlaidos]]-IšsamiBiudžetoInformacija[[#This Row],[Faktinės išlaidos]]","v":{"v":0,"d":"0 Lt"}},{"$f":"IšsamiBiudžetoInformacija[[#This Row],[Faktinės išlaidos]]","v":{"v":0,"d":"$0"}}]
[null,"Studento","Paskolos",null,null,{"$f":"IšsamiBiudžetoInformacija[[#This Row],[Numatytosios išlaidos]]-IšsamiBiudžetoInformacija[[#This Row],[Faktinės išlaidos]]","v":{"v":0,"d":"0 Lt"}},{"$f":"IšsamiBiudžetoInformacija[[#This Row],[Faktinės išlaidos]]","v":{"v":0,"d":"$0"}}]
[null,"Drabužiai","Asmeninė priežiūra",{"v":150,"d":"150 Lt"},{"v":140,"d":"140 Lt"},{"$f":"IšsamiBiudžetoInformacija[[#This Row],[Numatytosios išlaidos]]-IšsamiBiudžetoInformacija[[#This Row],[Faktinės išlaidos]]","v":{"v":10,"d":"10 Lt"}},{"$f":"IšsamiBiudžetoInformacija[[#This Row],[Faktinės išlaidos]]","v":{"v":140,"d":"$140"}}]
[null,"Cheminis valymas","Asmeninė priežiūra",null,null,{"$f":"IšsamiBiudžetoInformacija[[#This Row],[Numatytosios išlaidos]]-IšsamiBiudžetoInformacija[[#This Row],[Faktinės išlaidos]]","v":{"v":0,"d":"0 Lt"}},{"$f":"IšsamiBiudžetoInformacija[[#This Row],[Faktinės išlaidos]]","v":{"v":0,"d":"$0"}}]
[null,"Plaukai / nagai","Asmeninė priežiūra",null,null,{"$f":"IšsamiBiudžetoInformacija[[#This Row],[Numatytosios išlaidos]]-IšsamiBiudžetoInformacija[[#This Row],[Faktinės išlaidos]]","v":{"v":0,"d":"0 Lt"}},{"$f":"IšsamiBiudžetoInformacija[[#This Row],[Faktinės išlaidos]]","v":{"v":0,"d":"$0"}}]
[null,"Sveikatos klubas","Asmeninė priežiūra",null,null,{"$f":"IšsamiBiudžetoInformacija[[#This Row],[Numatytosios išlaidos]]-IšsamiBiudžetoInformacija[[#This Row],[Faktinės išlaidos]]","v":{"v":0,"d":"0 Lt"}},{"$f":"IšsamiBiudžetoInformacija[[#This Row],[Faktinės išlaidos]]","v":{"v":0,"d":"$0"}}]
[null,"Medicinos paslaugos","Asmeninė priežiūra",null,null,{"$f":"IšsamiBiudžetoInformacija[[#This Row],[Numatytosios išlaidos]]-IšsamiBiudžetoInformacija[[#This Row],[Faktinės išlaidos]]","v":{"v":0,"d":"0 Lt"}},{"$f":"IšsamiBiudžetoInformacija[[#This Row],[Faktinės išlaidos]]","v":{"v":0,"d":"$0"}}]
[null,"Maistas","Naminiai gyvūnai",{"v":150,"d":"150 Lt"},{"v":75,"d":"75 Lt"},{"$f":"IšsamiBiudžetoInformacija[[#This Row],[Numatytosios išlaidos]]-IšsamiBiudžetoInformacija[[#This Row],[Faktinės išlaidos]]","v":{"v":75,"d":"75 Lt"}},{"$f":"IšsamiBiudžetoInformacija[[#This Row],[Faktinės išlaidos]]","v":{"v":75,"d":"$75"}}]
[null,"Gyvūnų priežiūra","Naminiai gyvūnai",{"v":20,"d":"20 Lt"},{"v":25,"d":"25 Lt"},{"$f":"IšsamiBiudžetoInformacija[[#This Row],[Numatytosios išlaidos]]-IšsamiBiudžetoInformacija[[#This Row],[Faktinės išlaidos]]","v":{"v":-5,"d":"(5 Lt)"}},{"$f":"IšsamiBiudžetoInformacija[[#This Row],[Faktinės išlaidos]]","v":{"v":25,"d":"$25"}}]
[null,"Medicinos paslaugos","Naminiai gyvūnai",null,null,{"$f":"IšsamiBiudžetoInformacija[[#This Row],[Numatytosios išlaidos]]-IšsamiBiudžetoInformacija[[#This Row],[Faktinės išlaidos]]","v":{"v":0,"d":"0 Lt"}},{"$f":"IšsamiBiudžetoInformacija[[#This Row],[Faktinės išlaidos]]","v":{"v":0,"d":"$0"}}]
[null,"Žaislai","Naminiai gyvūnai",null,null,{"$f":"IšsamiBiudžetoInformacija[[#This Row],[Numatytosios išlaidos]]-IšsamiBiudžetoInformacija[[#This Row],[Faktinės išlaidos]]","v":{"v":0,"d":"0 Lt"}},{"$f":"IšsamiBiudžetoInformacija[[#This Row],[Faktinės išlaidos]]","v":{"v":0,"d":"$0"}}]
[null,"Investicijų sąskaita","Santaupos arba investicijos",{"v":200,"d":"200 Lt"},{"v":200,"d":"200 Lt"},{"$f":"IšsamiBiudžetoInformacija[[#This Row],[Numatytosios išlaidos]]-IšsamiBiudžetoInformacija[[#This Row],[Faktinės išlaidos]]","v":{"v":0,"d":"0 Lt"}},{"$f":"IšsamiBiudžetoInformacija[[#This Row],[Faktinės išlaidos]]","v":{"v":200,"d":"$200"}}]
[null,"Pensijos sąskaita","Santaupos arba investicijos",null,null,{"$f":"IšsamiBiudžetoInformacija[[#This Row],[Numatytosios išlaidos]]-IšsamiBiudžetoInformacija[[#This Row],[Faktinės išlaidos]]","v":{"v":0,"d":"0 Lt"}},{"$f":"IšsamiBiudžetoInformacija[[#This Row],[Faktinės išlaidos]]","v":{"v":0,"d":"$0"}}]
[null,"Federalinis","Mokesčiai",{"v":300,"d":"300 Lt"},{"v":300,"d":"300 Lt"},{"$f":"IšsamiBiudžetoInformacija[[#This Row],[Numatytosios išlaidos]]-IšsamiBiudžetoInformacija[[#This Row],[Faktinės išlaidos]]","v":{"v":0,"d":"0 Lt"}},{"$f":"IšsamiBiudžetoInformacija[[#This Row],[Faktinės išlaidos]]","v":{"v":300,"d":"$300"}}]
[null,"Vietinis","Mokesčiai",null,null,{"$f":"IšsamiBiudžetoInformacija[[#This Row],[Numatytosios išlaidos]]-IšsamiBiudžetoInformacija[[#This Row],[Faktinės išlaidos]]","v":{"v":0,"d":"0 Lt"}},{"$f":"IšsamiBiudžetoInformacija[[#This Row],[Faktinės išlaidos]]","v":{"v":0,"d":"$0"}}]
[null,"Valstybės","Mokesčiai",null,null,{"$f":"IšsamiBiudžetoInformacija[[#This Row],[Numatytosios išlaidos]]-IšsamiBiudžetoInformacija[[#This Row],[Faktinės išlaidos]]","v":{"v":0,"d":"0 Lt"}},{"$f":"IšsamiBiudžetoInformacija[[#This Row],[Faktinės išlaidos]]","v":{"v":0,"d":"$0"}}]
[null,"Mokestis už važiavimą autobusu / taksi","Transportas",{"v":100,"d":"100 Lt"},{"v":150,"d":"150 Lt"},{"$f":"IšsamiBiudžetoInformacija[[#This Row],[Numatytosios išlaidos]]-IšsamiBiudžetoInformacija[[#This Row],[Faktinės išlaidos]]","v":{"v":-50,"d":"(50 Lt)"}},{"$f":"IšsamiBiudžetoInformacija[[#This Row],[Faktinės išlaidos]]","v":{"v":150,"d":"$150"}}]
[null,"Degalai","Transportas",{"v":450,"d":"450 Lt"},{"v":400,"d":"400 Lt"},{"$f":"IšsamiBiudžetoInformacija[[#This Row],[Numatytosios išlaidos]]-IšsamiBiudžetoInformacija[[#This Row],[Faktinės išlaidos]]","v":{"v":50,"d":"50 Lt"}},{"$f":"IšsamiBiudžetoInformacija[[#This Row],[Faktinės išlaidos]]","v":{"v":400,"d":"$400"}}]
[null,"Draudimas","Transportas",{"v":300,"d":"300 Lt"},{"v":300,"d":"300 Lt"},{"$f":"IšsamiBiudžetoInformacija[[#This Row],[Numatytosios išlaidos]]-IšsamiBiudžetoInformacija[[#This Row],[Faktinės išlaidos]]","v":{"v":0,"d":"0 Lt"}},{"$f":"IšsamiBiudžetoInformacija[[#This Row],[Faktinės išlaidos]]","v":{"v":300,"d":"$300"}}]
[null,"Licencijos ","Transportas",{"v":25,"d":"25 Lt"},{"v":25,"d":"25 Lt"},{"$f":"IšsamiBiudžetoInformacija[[#This Row],[Numatytosios išlaidos]]-IšsamiBiudžetoInformacija[[#This Row],[Faktinės išlaidos]]","v":{"v":0,"d":"0 Lt"}},{"$f":"IšsamiBiudžetoInformacija[[#This Row],[Faktinės išlaidos]]","v":{"v":25,"d":"$25"}}]
[null,"Techninė priežiūra","Transportas",{"v":100,"d":"100 Lt"},{"v":50,"d":"50 Lt"},{"$f":"IšsamiBiudžetoInformacija[[#This Row],[Numatytosios išlaidos]]-IšsamiBiudžetoInformacija[[#This Row],[Faktinės išlaidos]]","v":{"v":50,"d":"50 Lt"}},{"$f":"IšsamiBiudžetoInformacija[[#This Row],[Faktinės išlaidos]]","v":{"v":50,"d":"$50"}}]
[null,"Automobilių statymo mokesčiai","Transportas",null,null,{"$f":"IšsamiBiudžetoInformacija[[#This Row],[Numatytosios išlaidos]]-IšsamiBiudžetoInformacija[[#This Row],[Faktinės išlaidos]]","v":{"v":0,"d":"0 Lt"}},{"$f":"IšsamiBiudžetoInformacija[[#This Row],[Faktinės išlaidos]]","v":{"v":0,"d":"$0"}}]
[null,"Transporto priemonės mokestis","Transportas",{"v":450,"d":"450 Lt"},{"v":450,"d":"450 Lt"},{"$f":"IšsamiBiudžetoInformacija[[#This Row],[Numatytosios išlaidos]]-IšsamiBiudžetoInformacija[[#This Row],[Faktinės išlaidos]]","v":{"v":0,"d":"0 Lt"}},{"$f":"IšsamiBiudžetoInformacija[[#This Row],[Faktinės išlaidos]]","v":{"v":450,"d":"$450"}}]
[null,"Iš viso",null,{"$f":"SUBTOTAL(109,IšsamiBiudžetoInformacija[Numatytosios išlaidos])","v":{"v":7915,"d":"7,915 Lt"}},{"$f":"SUBTOTAL(109,IšsamiBiudžetoInformacija[Faktinės išlaidos])","v":{"v":7860,"d":"7,860 Lt"}},{"$f":"SUBTOTAL(109,IšsamiBiudžetoInformacija[Skirtumas])","v":{"v":55,"d":"55 Lt"}}]

{"sheet":"Papildomi duomenys","index":2,"n_rows":15,"n_cols":5,"rows_kept":15}
[null,"„PivotTable“ diagramai Biudžeto apžvalga",null,null,"Kategorijos Išsami biudžeto informacija paieškos sąrašas"]
[null,"Kategorija","Faktinės išlaidos ",null,"Biudžeto kategorijos paieška"]
[null,"Asmeninė priežiūra",140,null,"Vaikai"]
[null,"Būstas",2702,null,"Pramogos"]
[null,"Dovanos ir labdara",125,null,"Maistas"]
[null,"Draudimas",900,null,"Dovanos ir labdara"]
[null,"Maistas",1320,null,"Būstas"]
[null,"Mokesčiai",300,null,"Draudimas"]
[null,"Naminiai gyvūnai",100,null,"Paskolos"]
[null,"Paskolos",200,null,"Asmeninė priežiūra"]
[null,"Pramogos",358,null,"Naminiai gyvūnai"]
[null,"Santaupos arba investicijos",200,null,"Santaupos arba investicijos"]
[null,"Transportas",1375,null,"Mokesčiai"]
[null,"Vaikai",140,null,"Transportas"]
[null,"Bendroji suma",7860]